Cogmind - Beta 15 @@@ ROGUE MODE // 2025.05.28 @ 17:55:04 Player: Niko Result: Destroyed by H-77 Assassin with High-powered Shotgun Performance ------------- Evolutions (7) 3500 Regions Visited (7) 1400 Robots Destroyed (9) 45 Value Destroyed (497) 497 Prototype IDs (10) 200 Alien Tech Used (0) 0 Bonus (1179) 1179 TOTAL SCORE: 6821 Bonus ------- Pacifist 491 Follower Combat Kills 679 Registered with UFD 300 Met Optimus in HQ 500 Friendly Fire -791 Cogmind --------- Core Integrity 0/1300 Matter 212/300 Energy 95/100 System Corruption 10% Temperature Cool (0) Movement Core (150) Ox2 Location -3/Research Parts ------- > --- POWER (2) -------- (None) > --- PROPULSION (5) --- (None) > --- UTILITY (11) ----- Advanced Signal Interpreter System Shield > --- WEAPON (3) ------- Enhanced Force Lance > --- INVENTORY (5) ---- Advanced Reaction Control System Drone Bay (1/2) Force Lance Peak State ------------ > --- POWER ------------ Light Antimatter Reactor Micro Antimatter Reactor > --- PROPULSION ------- Xenon Bombardment Thruster Xenon Bombardment Thruster Field Propulsion Array Diametric Drive > --- UTILITY ---------- Advanced Gravity Neutralizer Advanced Sensor Array Advanced Signal Interpreter Makeshift Hacking Suite System Shield System Guard Drone Bay > --- WEAPON ----------- Coil Gun > --- INVENTORY -------- Xenon Bombardment Thruster System Shield Heavy Machine Gun [Rating: 86] Favorites ----------- Power Light Ion Engine Engine Light Ion Engine Reactor Micro Antimatter Reactor Propulsion Light Treads Treads Light Treads Hover Unit Gyrokinetic Inverter Flight Unit Field Propulsion Array Utility System Shield Device Advanced Sensor Array Storage Small Storage Unit Processor System Guard Hackware System Shield Weapon Assault Rifle Energy Gun Small Laser Ballistic Gun Assault Rifle Special Weapon CPS Tube Piercing Weapon Enhanced Force Lance Build | -11 -10 -10 -7 -5 -5 -4 -3 ------- Run | Yrd Mat Sub Scr Fac Ext Fac Res Slots Evolved 14 | . . . . 10 . 2 2 Power 1 | . . . . 1 . . . Propulsion 3 | . . . . 3 . . . Utility 9 | . . . . 5 . 2 2 Weapon 1 | . . . . 1 . . . Parts Attached 44 | 6 . . 4 5 9 7 13 Power 7 | 1 . . 1 . 1 2 2 Engine 3 | 1 . . 1 . 1 . . Core . | . . . . . . . . Reactor 4 | . . . . . . 2 2 Propulsion 15 | 2 . . 2 . 5 2 4 Treads 4 | 2 . . 2 . . . . Leg . | . . . . . . . . Wheel . | . . . . . . . . Hover 3 | . . . . . 3 . . Flight 8 | . . . . . 2 2 4 Utility 13 | 1 . . . 4 . 3 5 Device 6 | . . . . . . 2 4 Storage 1 | 1 . . . . . . . Processor 3 | . . . . 2 . 1 . Hackware 3 | . . . . 2 . . 1 Protection . | . . . . . . . . Artifact . | . . . . . . . . Weapon 9 | 2 . . 1 1 3 . 2 Energy Gun 2 | 1 . . . . 1 . . Energy Cannon . | . . . . . . . . Ballistic Gun 3 | 1 . . . . 1 . 1 Ballistic Cannon . | . . . . . . . . Launcher . | . . . . . . . . Special Weapon 3 | . . . 1 1 1 . . Impact Weapon . | . . . . . . . . Slashing Weapon . | . . . . . . . . Piercing Weapon 1 | . . . . . . . 1 Special Melee Weapon . | . . . . . . . . Unidentified Prototypes 4 | . . . . . . 3 1 Parts Lost 20 | . . . 1 1 2 1 15 Power 3 | . . . . . 1 . 2 Propulsion 6 | . . . . . . 1 5 Utility 7 | . . . . . . . 7 Weapon 4 | . . . 1 1 1 . 1 Highest Loss Streak 6 | . . . 1 1 2 1 6 To Critical Strikes . | . . . . . . . . Average Backups 4 | 1 1 1 5 . 3 3 4 Power . | . 1 1 . . . . . Propulsion . | . . . . . 1 1 1 Utility 2 | . . . 3 . 1 2 1 Weapon . | . . . . . . . 1 Tool/Special . | . . . . . . . . Unused Backups 8 | 1 . . 3 . . 2 2 Power 2 | . . . 2 . . . . Propulsion 3 | 1 . . . . . 2 . Utility . | . . . . . . . . Weapon 3 | . . . 1 . . . 2 Tool/Special . | . . . . . . . . Average Slot Usage (%) 64 | . 85 85 80 25 52 64 46 Engine 6 | . 14 14 13 . 1 . . Reactor 1 | . . . . . . 5 3 Treads 12 | . 28 28 26 . . . . Hover 2 | . . . . . 15 3 . Flight 3 | . . . . . 1 12 9 Device 2 | . . . . . . 7 9 Storage 6 | . 14 14 13 . . . . Processor 5 | . . . . 10 11 13 9 Hackware 5 | . . . . 10 11 10 8 Energy Gun 4 | . 14 14 6 . 3 . . Ballistic Gun 7 | . 14 14 13 . 2 3 1 Special Weapon 3 | . . . 6 2 3 5 . Peak Build Rating 86 | 6 6 6 19 20 60 78 86 Average Rating 32 | 3 6 6 10 18 47 67 62 On Entrance 20 | . 6 6 6 2 18 53 74 Naked Turns 68 | . . . 68 . . . . Heaviest Build 32 | 11 11 11 17 1 23 29 32 Greatest Support 50 | 40 40 40 40 3 33 42 50 Greatest Overweight (x) 5 | . . . 5 . 2 1 2 Average Overweight (x) . | . . . . . . . . Largest Inventory Capacity 8 | 8 8 8 8 5 5 5 5 Average Capacity 6 | 6 8 8 7 5 5 5 5 Most Carried 8 | 4 1 1 8 4 5 5 5 Average Carried 4 | 1 1 1 6 . 3 4 4 Final Capacity 8 | 8 8 8 5 5 5 5 5 Final Carried 5 | 1 1 1 5 2 5 3 3 Class Distribution -------------------- 49% | Mutant 37% | Hacker-Mutant 6% | Scavenger-Sprinter 4% | Hacker-Sprinter Dominant Class ---------------- Mutant | -10/Materials Mutant | -10/Subcaves Mutant | -7/Scraptown Hacker-Mutant | -5/Factory Hacker-Mutant | -5/Extension Scavenger-Sprinter | -4/Factory Hacker-Mutant | -3/Research Resources | -11 -10 -10 -7 -5 -5 -4 -3 ----------- Run | Yrd Mat Sub Scr Fac Ext Fac Res Matter Collected 757 | 215 . 17 68 . 294 100 63 Remotely . | . . . . . . . . Salvage Created 501 | . . . . . 100 76 325 Parts 33 | . . . . . 7 6 20 Haulers Intercepted . | . . . . . . . . Recyclers Shooed . | . . . . . . . . Parts Field Recycled . | . . . . . . . . Retrieved Matter . | . . . . . . . . Parts Self-Destructed . | . . . . . . . . Prevented . | . . . . . . . . Kills | -11 -10 -10 -7 -5 -5 -4 -3 ------- Run | Yrd Mat Sub Scr Fac Ext Fac Res Combat Hostiles Destroyed 7 | . . . . . 1 . 6 Melee 3 | . . . . . . . 3 Guns 4 | . . . . . 1 . 3 Classes Destroyed 5 | . . . . . 1 1 3 Operator 1 | . . . . . . 1 . Swarmer 3 | . . . . . . . 3 Grunt 1 | . . . . . . . 1 Programmer 2 | . . . . . . . 2 Behemoth 1 | . . . . . 1 . . Best Kill Streak 3 | . . . . . 1 1 3 Combat Bots Only 3 | . . . . . 1 . 3 Max Kills in Single Turn 1 | . . . . . 1 1 1 Gunslinging . | . . . . . . . . Exploded . | . . . . . . . . Melee 1 | . . . . . . . 1 Uniques/NPCs Destroyed 1 | . . . . . . 1 . A7 (-4/Factory) Combat | -11 -10 -10 -7 -5 -5 -4 -3 -------- Run | Yrd Mat Sub Scr Fac Ext Fac Res Hostile Shots Fired 275 | . . . 24 6 39 43 163 Missed 120 | . . . 5 1 13 29 72 Hits 155 | . . . 19 5 26 14 91 Melee 3 | . . . 3 . . . . Projectile 152 | . . . 16 5 26 14 91 Critical Strikes 13 | . . . 3 1 1 2 6 Damage Taken 3494 | . . 90 342 99 534 225 2204 Core 1924 | . . 24 146 78 240 136 1300 Absorbed by Shields 110 | . . . . . 110 . . Regen/Repaired (Parts) 263 | . . . . . . 159 104 Core Remaining (%) 72 | 100 . . 32 . 68 88 . Volleys Fired 62 | . . . . 1 32 7 22 Largest 2 | . . . . 1 2 1 1 Hottest 98 | . . . . . 98 33 30 Shots Fired 66 | . . . . 1 36 7 22 Gun 47 | . . . . . 19 6 22 Cannon . | . . . . . . . . Launcher . | . . . . . . . . Special 19 | . . . . 1 17 1 . Kinetic 43 | . . . . . 15 6 22 Thermal . | . . . . . . . . Explosive . | . . . . . . . . Electromagnetic 4 | . . . . . 4 . . Robot Hit Streak 10 | . . . . 1 10 5 4 Robot Miss Streak 2 | . . . . . 2 1 2 Penetration Max 1 | . . . . . 1 . . Secondary Targets . | . . . . . . . . Shots Hit Robots 52 | . . . . 1 27 5 19 Core Hits 16 | . . . . . 5 2 9 Critical Kills . | . . . . . . . . Critical Parts Destroyed 1 | . . . . . . . 1 Critical Strikes 2 | . . . . . 1 . 1 Destroy 2 | . . . . . 1 . 1 Melee Attacks 13 | . . . . . . . 13 Impact . | . . . . . . . . Slashing . | . . . . . . . . Piercing 13 | . . . . . . . 13 Sneak Attacks 2 | . . . . . . . 2 Combat Hostiles 2 | . . . . . . . 2 Follow-up Attacks . | . . . . . . . . Damage Inflicted 1223 | . . . . . 328 82 813 Guns 689 | . . . . . 328 82 279 Cannons . | . . . . . . . . Explosions . | . . . . . . . . Melee 505 | . . . . . . . 505 Ramming 29 | . . . . . . . 29 Kinetic 656 | . . . . . 295 82 279 Thermal . | . . . . . . . . Explosive . | . . . . . . . . Electromagnetic 33 | . . . . . 33 . . Impact . | . . . . . . . . Slashing . | . . . . . . . . Piercing 505 | . . . . . . . 505 Highest Corruption 10 | . . . . . . . 10 Average Corruption 8 | . . . . . . . 8 Corruption Purged . | . . . . . . . . Corruption Blocked . | . . . . . . . . Effects 2 | . . . . . . . 2 Energy Discharges 1 | . . . . . . . 1 Data Loss (major) 1 | . . . . . . . 1 Overload Shots . | . . . . . . . . Overflow Damage 116 | . . . . . . . 116 Projectiles . | . . . . . . . . Explosions . | . . . . . . . . Melee 116 | . . . . . . . 116 Knockbacks . | . . . . . . . . Impact . | . . . . . . . . Kinetic . | . . . . . . . . Secondary . | . . . . . . . . Self-Inflicted Damage 13 | . . . . . . . 13 Shots . | . . . . . . . . Rammed 9 | . . . . . . . 9 Targets Rammed 9 | . . . . . . . 9 Kicked . | . . . . . . . . Crushed . | . . . . . . . . Highest Temperature 196 | . . . 35 . 54 . 196 Average Temperature 34 | . . . 21 . 22 . 57 Received Heat Transfer 550 | . . . 121 9 107 . 313 Siege Activations . | . . . . . . . . Martial Activations . | . . . . . . . . Shielding Activations . | . . . . . . . . Robots Disrupted 1 | . . . . . 1 . . Combat Hostiles 1 | . . . . . 1 . . Robots Corrupted . | . . . . . . . . Combat Hostiles . | . . . . . . . . Parts Fried . | . . . . . . . . Impact Corruptions . | . . . . . . . . Robots Melted . | . . . . . . . . Combat Hostiles . | . . . . . . . . Parts Melted 2 | . . . . . . . 2 Heat Transferred . | . . . . . . . . Parts Sabotaged . | . . . . . . . . Parts Stolen . | . . . . . . . . Parts Stripped . | . . . . . . . . Power Chain Reactions . | . . . . . . . . Alert | -11 -10 -10 -7 -5 -5 -4 -3 ------- Run | Yrd Mat Sub Scr Fac Ext Fac Res Maximum Alert Level 2 | . . . . . 2 1 . Low Security (%) 78 | 100 100 . . 100 58 13 100 Level 1 15 | . . . . . 23 86 . Level 2 5 | . . . . . 18 . . Level 3 . | . . . . . . . . Level 4 . | . . . . . . . . Level 5 . | . . . . . . . . High Security . | . . . . . . . . Max Security . | . . . . . . . . Peak Influence 476 | . . . . 32 476 263 178 Initial 220 | . . . . . 10 220 119 Average 110 | . . . . 2 180 224 78 Influence Increases 1511 | . . . . 32 805 168 506 Destroy 0b10 Robot/C 520 | . . . . . 400 . 120 Destroy 0b10 Robot/NC 40 | . . . . . 30 10 . Destroy Leader 64 | . . . . . 44 . 20 Allied During Kill 131 | . . . . . 131 . . Successful Hack 8 | . . . . 2 . . 6 Disable Machine 75 | . . . . . 30 15 30 Destroy Structure 28 | . . . . . 20 8 . Partial Spotted 60 | . . . . . 15 15 30 Lose Combat Pursuer 585 | . . . . 30 135 120 300 Influence Decreases 1333 | . . . . 10 376 391 556 Entered New Map 352 | . . . . . 12 231 109 Time Decay 722 | . . . . 10 264 110 338 Lost Part 130 | . . . . . 20 10 100 Lost Ally 129 | . . . . . 80 40 9 Squads Dispatched 14 | . . . . 2 4 4 4 Investigation 2 | . . . . . . 1 1 Extermination 2 | . . . . . . . 2 Reinforcement 9 | . . . . 2 3 3 1 Assault 1 | . . . . . 1 . . Garrison . | . . . . . . . . Intercept . | . . . . . . . . Searches Triggered . | . . . . . . . . Construction Impeded 2 | . . . . . 2 . . Haulers Reinforced 1 | . . . . . . . 1 Active Scanning Responses . | . . . . . . . . Cargo Convoy Interrupts . | . . . . . . . . Stealth | -11 -10 -10 -7 -5 -5 -4 -3 --------- Run | Yrd Mat Sub Scr Fac Ext Fac Res Distress Signals 5 | . . . . . 2 1 2 Communications Jammed . | . . . . . . . . Distress Signals . | . . . . . . . . Times Spotted 108 | . . . 22 8 32 16 30 Peak Tracking Total 9 | . 1 . 7 5 7 8 9 Tactical Retreats 18 | . . . 1 1 7 3 6 Traps | -11 -10 -10 -7 -5 -5 -4 -3 ------- Run | Yrd Mat Sub Scr Fac Ext Fac Res Traps Triggered 6 | . . 3 . . 1 1 1 Indirectly . | . . . . . . . . Trap Hack Attempts . | . . . . . . . . Triggered . | . . . . . . . . Disarmed . | . . . . . . . . Reprogrammed . | . . . . . . . . Reused . | . . . . . . . . Traps Extracted . | . . . . . . . . Installed . | . . . . . . . . Triggered . | . . . . . . . . Machines | -11 -10 -10 -7 -5 -5 -4 -3 ---------- Run | Yrd Mat Sub Scr Fac Ext Fac Res Machines Disabled 8 | . . . . . 5 1 2 Max in Single Turn 1 | . . . . . . 1 1 Machines Repaired . | . . . . . . . . Machines Dismantled . | . . . . . . . . Machines Sabotaged . | . . . . . . . . Overloaded Fab Kills . | . . . . . . . . Hacking | -11 -10 -10 -7 -5 -5 -4 -3 --------- Run | Yrd Mat Sub Scr Fac Ext Fac Res Machines Accessed 10 | . . . 1 2 3 1 3 Terminals 6 | . . . . 2 3 . 1 Fabricators . | . . . . . . . . Repair Stations 2 | . . . . . . 1 1 Recycling Units 1 | . . . . . . . 1 Scanalyzers . | . . . . . . . . Garrison Access . | . . . . . . . . Total Hacks 26 | . . . 3 3 4 3 13 Successful 16 | . . . 3 2 3 2 6 Failed 10 | . . . . 1 1 1 7 Catastrophic . | . . . . . . . . Database Lockouts . | . . . . . . . . Manual . | . . . . . . . . Terminals 9 | . . . . 3 4 . 2 Fabricators . | . . . . . . . . Repair Stations 10 | . . . . . . 3 7 Recycling Units 4 | . . . . . . . 4 Scanalyzers . | . . . . . . . . Garrison Access . | . . . . . . . . Terminal Hacks 9 | . . . 3 2 3 . 1 Record 4 | . . . 3 . 1 . . Open Door 3 | . . . . 1 2 . . Open DSF 2 | . . . . 1 . . 1 Fabricator Hacks . | . . . . . . . . Repair Station Hacks 6 | . . . . . . 2 4 Scan Component 4 | . . . . . . 1 3 Repair 2 | . . . . . . 1 1 Recycling Unit Hacks 1 | . . . . . . . 1 Report Inventory 1 | . . . . . . . 1 Scanalyzer . | . . . . . . . . Garrison Access Hacks . | . . . . . . . . Unauthorized Hacks . | . . . . . . . . Terminals . | . . . . . . . . Fabricators . | . . . . . . . . Repair Stations . | . . . . . . . . Recycling Units . | . . . . . . . . Scanalyzers . | . . . . . . . . Garrison Access . | . . . . . . . . Data Cores Recovered . | . . . . . . . . Used . | . . . . . . . . Hacking Detections 4 | . . . . . 1 1 2 Full Trace Events 2 | . . . . . . 1 1 Feedback Events . | . . . . . . . . Feedback Blocked . | . . . . . . . . Robot Schematics Acquired . | . . . . . . . . Robots Built . | . . . . . . . . Authchips . | . . . . . . . . Time . | . . . . . . . . Total Robot Build Rating . | . . . . . . . . Part Schematics Acquired . | . . . . . . . . Parts Built . | . . . . . . . . Authchips . | . . . . . . . . Time . | . . . . . . . . Total Part Build Rating . | . . . . . . . . Parts Repaired 2 | . . . . . . 1 1 Time 98 | . . . . . . 28 70 Parts Recycled . | . . . . . . . . Recycled Matter . | . . . . . . . . Retrieved Matter . | . . . . . . . . Retrieved Components . | . . . . . . . . Parts Scanalyzed . | . . . . . . . . Part Schematics Acquired . | . . . . . . . . Parts Damaged . | . . . . . . . . Bothacking | -11 -10 -10 -7 -5 -5 -4 -3 ------------ Run | Yrd Mat Sub Scr Fac Ext Fac Res Used RIF Installer . | . . . . . . . . Robots Hacked . | . . . . . . . . Non-combat . | . . . . . . . . Combat . | . . . . . . . . Robot Hacks Applied . | . . . . . . . . Relay Couplers Released . | . . . . . . . . Fabnet Peak Effective % . | . . . . . . . . Robots Rewired 9 | . . . . . 8 1 . Allies Hacked . | . . . . . . . . Hacks Repelled . | . . . . . . . . Allies | -11 -10 -10 -7 -5 -5 -4 -3 -------- Run | Yrd Mat Sub Scr Fac Ext Fac Res Total Allies 11 | . . . 1 . 9 1 . Largest Group 6 | . . . 1 . 6 2 . Highest-Rated Group 294 | . . . 54 . 294 198 . Highest-Rated Ally 159 | . . . 54 . 159 159 . Total Orders 5 | . . . 1 . . . 4 GUARD 1 | . . . 1 . . . . EXPLORE 3 | . . . . . . . 3 RETURN 1 | . . . . . . . 1 Ally Attacks 148 | . . . 11 . 127 10 . Total Damage 3991 | . . . 211 . 3604 176 . Kills 28 | . . . 1 . 26 1 . Allies Corrupted . | . . . . . . . . Allies Melted 3 | . . . 3 . . . . Intel | -11 -10 -10 -7 -5 -5 -4 -3 ------- Run | Yrd Mat Sub Scr Fac Ext Fac Res Active Infowar (turns) 1929 | . . . . 174 686 230 839 Sensors 1002 | . . . . . . 163 839 Decoding 1164 | . . . . 174 686 230 74 Robot Analysis Total . | . . . . . . . . Derelict Logs Recovered . | . . . . . . . . Drone Launches 4 | . . . . . . . 4 Drone Recoveries 3 | . . . . . . . 3 Decoded 0b10 Intel 33 | . . . . 6 17 7 3 Traps 1 | . . . . . 1 . . Emergency Access 1 | . . . . . . 1 . Items 18 | . . . . 2 9 4 3 Machines 8 | . . . . 3 3 2 . Guards 4 | . . . . 1 3 . . Exits 1 | . . . . . 1 . . Exploration | -11 -10 -10 -7 -5 -5 -4 -3 ------------- Run | Yrd Mat Sub Scr Fac Ext Fac Res Turns Passed 4000 | 75 155 129 1574 174 686 230 977 Spaces Moved 3222 | 53 78 77 820 263 692 487 752 Core 622 | 21 . . 138 263 73 . 127 Treads 869 | 32 78 77 682 . . . . Legs . | . . . . . . . . Wheels . | . . . . . . . . Hover 655 | . . . . . 618 37 . Flight 1076 | . . . . . 1 450 625 Fastest Speed 27 | 50 160 160 50 50 50 27 27 Average Speed 78 | 116 160 160 140 50 69 33 40 Slowest Speed 300 | 160 160 160 300 50 195 110 150 Overloaded Moves . | . . . . . . . . Propulsion Burnouts . | . . . . . . . . Robots Hopped 14 | . . . . . . 9 5 Potential Cave-ins . | . . . . . . . . Cave-ins Triggered . | . . . . . . . . Exploration Rate (%) 20 | 4 16 7 42 7 55 15 18 Regions Visited 7 Branch Regions 3 Pre-discovered Areas . | . . . . . . . . Known Exits Taken 2 | . . . . . 1 1 . Unknown Exits Taken 5 | 1 1 1 1 1 . . . Scrap Searched 2 | . . . 2 . . . . Spaces Dug . | . . . . . . . . Terrain Destroyed 4 | . . . . . . . 4 Melee . | . . . . . . . . Projectile 4 | . . . . . . . 4 AOE . | . . . . . . . . Terrain Rammed . | . . . . . . . . Walls Destroyed . | . . . . . . . . Machines Disabled . | . . . . . . . . Actions | -11 -10 -10 -7 -5 -5 -4 -3 --------- Run | Yrd Mat Sub Scr Fac Ext Fac Res Total 4588 | 67 108 81 1242 303 870 538 1379 Wait 1170 | . 31 5 396 33 117 37 551 Move 3187 | 52 77 76 819 262 691 468 742 Hop 14 | . . . . . . 9 5 Pick Up 45 | 8 . . 12 2 8 4 11 Fast Attach 10 | . . . . . 3 4 3 Attach 34 | 6 . . 1 5 6 3 13 Detach 3 | . . . . . . . 3 Swap 3 | . . . 3 . . . . Drop 25 | 1 . . 11 . . 6 7 Fire 62 | . . . . 1 32 7 22 Melee 13 | . . . . . . . 13 Ram 9 | . . . . . . . 9 Kick . | . . . . . . . . Crush . | . . . . . . . . Escape Stasis 13 | . . . . . 13 . . Rewire . | . . . . . . . . Trap . | . . . . . . . . Miscellaneous . | . . . . . . . . Route ------- -11/Scrapyard -10/Materials -10/Subcaves -7/Scraptown -5/Factory -5/Extension -4/Factory -3/Research (discovered 1 exit: [*Arm]) History --------- Turn | Location | Event 23 | -11/Scrapyard | Discovered new exit (range 15) 76 | -11/Scrapyard | Entered Materials 207 | -10/Materials | Discovered new exit (range 5) 231 | -10/Materials | Entered Subcaves 232 | -10/Subcaves | Approached by a straggling Scientist 302 | -10/Subcaves | Build established: Mutant 350 | -10/Subcaves | Scientist uncovered a shortcut to Scraptown 360 | -10/Subcaves | Entered Scraptown 582 | -7/Scraptown | Visited UFD Registry 582 | -7/Scraptown | Registered with UFD as "Fibernade" 676 | -7/Scraptown | Visited Infowarlord's Domain 1023 | -7/Scraptown | Visited Research Penetration Think Tank 1061 | -7/Scraptown | Visited Junk Repository 1124 | -7/Scraptown | Visited Botcube Research 1133 | -7/Scraptown | Found Botcube 1195 | -7/Scraptown | Met Optimus 1195 | -7/Scraptown | Accepted into 0bPrime 1595 | -7/Scraptown | Civil war broke out across Scraptown 1677 | -7/Scraptown | Botcube activated 1683 | -7/Scraptown | Lost 4 allies 1689 | -7/Scraptown | Botcube completed mutation into legged form, armed with 1 gun. 1814 | -7/Scraptown | Optimus destroyed in the chaos of civil war 1920 | -7/Scraptown | Lost 5 allies 1922 | -7/Scraptown | Discovered new exit (range 5) 1933 | -7/Scraptown | Core integrity fell below 50% 1934 | -7/Scraptown | Entered Factory 1934 | -5/Factory | Evolved 10 slots: Power x1, Propulsion x3, Utility x5, Weapon x1 1942 | -5/Factory | Identified exit to DSF 2035 | -5/Factory | Spotted B-75 Beast 2086 | -5/Factory | Discovered new exit (range 6) 2108 | -5/Factory | Entered Extension 2180 | -5/Extension | Rescued A7 2229 | -5/Extension | Build established: Hacker-Mutant 2496 | -5/Extension | Spotted B-75 Beast 2528 | -5/Extension | Destroyed B-75 Beast 2554 | -5/Extension | Spotted B-75 Beast 2586 | -5/Extension | Identified exit to Factory 2591 | -5/Extension | Allies destroyed B-75 Beast 2708 | -5/Extension | First assault squad dispatched 2794 | -5/Extension | Entered Factory 2794 | -4/Factory | Accompanied by 2 allies (A7) 2794 | -4/Factory | Evolved 2 slots: Utility x2 2798 | -4/Factory | Murdered A7 2803 | -4/Factory | Extracted ID and sensor layout for unrecognized location from A7's data core 2969 | -4/Factory | Repaired KE Penetrator? 2996 | -4/Factory | Spotted B-86 Titan 3019 | -4/Factory | Discovered new exit (range 4) 3023 | -4/Factory | Identified exit to Research 3024 | -4/Factory | Entered Research 3024 | -3/Research | Evolved 2 slots: Utility x2 3048 | -3/Research | Identified exit to DSF 3281 | -3/Research | Lost 5 parts (2p2n1u) 3289 | -3/Research | Repaired Broken Drone Bay? 3905 | -3/Research | Discovered new exit (range 12) 3928 | -3/Research | Core integrity fell below 50% 3955 | -3/Research | System corruption reached 10% 3975 | -3/Research | Core integrity fell below 20% 3981 | -3/Research | Lost 6 parts (2n4u) 4001 | -3/Research | Destroyed by H-77 Assassin with High-powered Shotgun Last Messages --------------- System corrupted: Substantial component data lost. Slammed into G-67 Veteran. Adv. Signal Interpreter broken. Destabilizing: Short circuit. Slammed into K-01 Serf. Slammed into A-15 Conveyor. A-15 Conveyor calls for reinforcements. ALERT: Hostile activity reported, dispatching reinforcements to area. Slammed into K-01 Serf. Slammed into W-44 Eye. Faulty integration triggers heat surge (+242). Dropped Faulty Imp. Diametric Drive. R-10 Processor collects Faulty Imp. Diametric Drive. W-44 Eye sends out distress signal. Slug penetrates Wall. G-67 Veteran destroyed. R-10 Processor collects Adv. Heat Sink. Map ----- +----------------------------------------------------+ | ?????????????????????????????????????????????????? | | ?????????????????????????????????????????????????? | | ?????????????????????????????????????????????????? | | ?????????????????????????????????????????????????? | | ?????????????????????????????????????????????????? | | ?????????????????????????????????????????????????? | | ?????????????????????????????????????????????????? | | ????????????????????????? ???????????????????????? | | ????????????????????????? ???????????????????????? | | ????????????????????????? ???????????????????????? | | ????????????????????????? ???????????????????????? | | ????????????????????????? ???????????????????????? | | ?????????????????????????k???????????????????????? | | ????????????????????????? ???????????????????????? | | ????????????????????????# #??????????????????????? | | ????????????????????????# #??????????????????????? | | ????????????????????????# #??????????????????????? | | ????????????????????????# #??????????????????????? | | ????????????????????????#k#??????????????????????? | | ????????????????????????# #??????????????????????? | | ????????????????????????#u#??????????????????????? | | ????????????????????????# #??????????????????????? | | ????????????????????????# #??????????????????????? | | ????????????????????????#R#??????????????????????? | | ????????????????????????#h#??????????????????????? | | ???#############????????#@#??????????????????????? | | ???# ????????#!#??????????????????????? | | ???# = ????????#%##########?????????????? | | ???# ????????#[# ??????????????? | | ???# ""#???????#=# ???????????????? | | ??##!!! ""#???????#^# """"???????????????? | | ??# !! ""#????####k# """"""?????????????? | | ???#!! T#????# # """"""" #?????????? | | ???# ""#????# # #?????????? | | ???# ""#????# + #?????????? | | ???? ""#????# # """"""" #?????????? | | ?????? ??????# # """""""????????????? | | ???????? ????????# # """"???????????????? | | ##########+########### # ???????????????? | | ] # # ??????????????? | | + #########??????????????? | | """"" # #??????????????????????? | | ""T"" # #??????????????????????? | | # ###############??????????????????????? | | # #????????????????????????????????????? | | ###+#### #????????????????????????????????????? | | # #????????????????????????????????????? | | # #????????????????????????????????????? | | # #????????????????????????????????????? | | # +????????????????????????????????????? | +----------------------------------------------------+ Best States ------------- Heat Dissipation 46 Energy Generation 37 Energy Capacity 220 Matter Stores 300 Matter Capacity 300 Sight Range 16 Robot Scan Range 16 Terrain Scan Density 10 Power Amplification 30 Additional Mass Support 16 Corruption Containment 8 Evasion (%) 64 Recoil Reduction 2 Offensive Hacking 11 Defensive Hacking 20 Item Schematics ----------------- None Robot Schematics ------------------ None Fabricated ------------ Nothing Repaired ---------- KE Penetrator | 3% | -4/Factory Drone Bay | 13% | -3/Research | Broken Alien Tech Used ----------------- None Achievements -------------- Prison Break Streaker Challenges ------------ None Game ------ Seed RagnarokPersonalFlakker Manual? 0 Play Time 00:52:41 Cumulative 34.4 hours Start 2025.05.28 @ 09:38:04 End 2025.05.28 @ 17:55:04 Sessions 1 Manual Loads 0 Difficulty Rogue Special Mode None Game No. 61 Rogue 61 Adventurer 0 Explorer 0 Win Type - Total 0 Types 0/0/0/0/0/0/0/0/0/0 Lore% 23 Gallery% 29 Achievement% 30 Wizard Run 0 Options --------- Layout 1 ASCII 0 Keyboard 0 Movement Mouse Keybinds 0 Fullscreen 1 Font 24/Smallcaps Map View 50x35 Zoom Use 0% Tactical HUD 0 Map Filters NONE Filters NONE Steam 1 RUN: 9d589cac-d4c6-414f-9b29-fe3f4507d601